lending/lending_fUSD_20250808
["ID","MTS","AMOUNT","RATE_DAILY","PERIOD"]
[378005386,1754665838879,-400.0,0.00018753,2]
[378005387,1754665838888,-400.0,0.00018753,2]
[378005388,1754665838897,-400.0,0.00018753,2]
[378005389,1754665838907,-1345.86,0.00018753,2]
[378005390,1754665838916,-632.06,0.00018753,2]
[378005391,1754665838926,-400.0,0.00018753,2]
[378005392,1754665838935,-400.0,0.00018753,2]
[378005393,1754665838945,-444.74,0.00018753,2]
[378005394,1754665838954,-400.0,0.00018753,2]
[378005395,1754665838964,-752.21,0.00018753,2]
[378005396,1754665838973,-400.0,0.00018753,2]
[378005397,1754665838982,-400.0,0.00018753,2]
[378005398,1754665838991,-501.05,0.00018753,2]
[378005399,1754665839000,-420.23,0.00018753,2]
[378005400,1754665839011,-1263.68,0.00018753,2]
[378005401,1754665839020,-400.0,0.00018753,2]
[378005402,1754665839030,-400.0,0.00018753,2]
[378005403,1754665839039,-400.0,0.00018753,2]
[378005404,1754665839049,-400.0,0.00018753,2]
[378005405,1754665839059,-721.41,0.00018753,2]
[378005406,1754665839069,-450.92,0.00018753,2]
[378005407,1754665839079,-400.0,0.00018753,2]
[378005408,1754665839088,-420.59,0.00018753,2]
[378005409,1754665839097,-1220.4,0.00018753,2]
[378005410,1754665839107,-400.0,0.00018753,2]
[378005411,1754665839116,-400.0,0.00018753,2]
[378005412,1754665839125,-400.0,0.00018753,2]
[378005413,1754665839135,-426.89369609,0.00018753,2]
[378005414,1754665839144,-1284.62,0.00018753,2]
[378005415,1754665839155,-400.0,0.00018753,2]
[378005416,1754665839165,-476.8,0.00018753,2]
[378005417,1754665839174,-614.98,0.00018753,2]
[378005418,1754665839183,-400.0,0.00018753,2]
[378005419,1754665839193,-1077.52,0.00018753,2]
[378005420,1754665839202,-400.0,0.00018753,2]
[378005421,1754665839211,-493.70014755,0.00018753,2]
[378005422,1754665839221,-400.0,0.00018753,2]
[378005423,1754665839230,-616.12,0.00018753,2]
[378005424,1754665839239,-1124.34,0.00018753,2]
[378005425,1754665839248,-890.1,0.00018753,2]
[378005426,1754665839258,-400.0,0.00018753,2]
[378005427,1754665839268,-400.0,0.00018753,2]
[378005428,1754665839277,-400.0,0.00018753,2]
[378005429,1754665839287,-1039.6,0.00018753,2]
[378005430,1754665839296,-400.0,0.00018753,2]
[378005431,1754665839305,-400.0,0.00018753,2]
[378005432,1754665839315,-525.99,0.00018753,2]
[378005433,1754665839325,-400.0,0.00018753,2]
[378005434,1754665839334,-716.81,0.00018753,2]
[378005435,1754665839344,-400.0,0.00018753,2]
[378005436,1754665839354,-400.0,0.00018753,2]
[378005437,1754665839363,-400.0,0.00018753,2]
[378005438,1754665839373,-535.58,0.00018753,2]
[378005439,1754665839382,-1335.94,0.00018753,2]
[378005440,1754665839392,-400.0,0.00018753,2]
[378005441,1754665839402,-400.0,0.00018753,2]
[378005442,1754665839411,-4227.18,0.00018753,2]
[378005443,1754665839421,-457.02,0.00018753,2]
[378005444,1754665839431,-400.0,0.00018753,2]
[378005445,1754665839440,-619.61,0.00018753,2]
[378005446,1754665839450,-400.0,0.00018753,2]
[378005447,1754665839459,-400.0,0.00018753,2]
[378005448,1754665839469,-428.02,0.00018753,2]
[378005449,1754665839478,-400.0,0.00018753,2]
[378005450,1754665839489,-400.0,0.00018753,2]
[378005451,1754665839499,-322.4409905,0.00018753,2]
[378005452,1754665839544,-141.4390095,0.00018753,2]
[378005453,1754665839554,-400.0,0.00018753,2]
[378005454,1754665839564,-624.7259905,0.00018753,2]
[378005455,1754665839576,-447.4540095,0.00018753,2]
[378005456,1754665839586,-402.2,0.00018753,2]
[378005457,1754665839597,-558.58,0.00018753,2]
[378005458,1754665839607,-1273.16,0.00018753,2]
[378005459,1754665839616,-400.0,0.00018753,2]
[378005460,1754665839626,-757.14,0.00018753,2]
[378005461,1754665839638,-400.0,0.00018753,2]
[378005462,1754665839648,-300.0,0.00018753,2]
[378005463,1754665839658,-734.74,0.00018753,2]
[378005464,1754665839667,-400.0,0.00018753,2]
[378005465,1754665839677,-400.0,0.00018753,2]
[378005466,1754665839686,-1247.21,0.00018753,2]
[378005467,1754665839696,-507.07,0.00018753,2]
[378005468,1754665839706,-400.0,0.00018753,2]
[378005469,1754665839715,-400.0,0.00018753,2]
[378005470,1754665839726,-1774.87,0.00018753,2]
[378005471,1754665839736,-209.4959905,0.00018753,2]
[378005516,1754665840694,-274.61443225,0.00018399,2]
[378005517,1754665840706,-155.07777276,0.00018498,2]
[378005518,1754665840718,-218.62903151,0.00018498,2]
[378005519,1754665840728,-400.0,0.00018499,2]
[378005520,1754665840738,-256.86945675,0.00018499,2]
[378005522,1754665840749,-143.13054325,0.00018499,2]
[378005523,1754665840759,-408.4740095,0.00018753,2]
[378005524,1754665840768,-400.0,0.00018753,2]
[378005525,1754665840779,-400.0,0.00018753,2]
[378005526,1754665840789,-572.54,0.00018753,2]
[378005527,1754665840798,-410.88825364,0.00018753,2]
[378005528,1754665840808,-400.0,0.00018753,2]
[378005529,1754665840817,-400.0,0.00018753,2]
[378005530,1754665840827,-400.0,0.00018753,2]
[378005531,1754665840837,-1538.06,0.00018753,2]
[378005532,1754665840846,-52.19400319,0.00018753,2]
[378005533,1754665840858,-529.85599681,0.00018753,2]
[378005534,1754665840868,-474.97,0.00018753,2]
[378005535,1754665840878,-635.55,0.00018753,2]
[378005536,1754665840887,-1285.93,0.00018753,2]
[378005537,1754665840897,-193.51865499,0.00018753,2]
[378005538,1754665840940,-213.54134501,0.00018753,2]
[378005539,1754665840949,-400.0,0.00018753,2]
[378005540,1754665840959,-992.47,0.00018753,2]
[378005541,1754665840968,-400.0,0.00018753,2]
[378005542,1754665840978,-498.62,0.00018753,2]
[378005543,1754665840987,-538.57642072,0.00018753,2]
[378005544,1754665840996,-468.72,0.00018753,2]
[378005545,1754665841071,-537.34,0.00018753,2]
[378005546,1754665841081,-685.13,0.00018753,2]
[378005547,1754665841090,-601.37,0.00018753,2]
[378005548,1754665841099,-400.0,0.00018753,2]
[378005549,1754665841109,-1701.51,0.00018753,2]
[378005550,1754665841118,-426.2,0.00018753,2]
[378005551,1754665841128,-1148.86,0.00018753,2]
[378005552,1754665841136,-435.54,0.00018753,2]
[378005553,1754665841146,-400.0,0.00018753,2]
[378005554,1754665841155,-627.73,0.00018753,2]
[378005555,1754665841164,-400.0,0.00018753,2]
[378005556,1754665841173,-541.26,0.00018753,2]
[378005557,1754665841182,-400.0,0.00018753,2]
[378005558,1754665841191,-400.0,0.00018753,2]
[378005559,1754665841201,-544.69,0.00018753,2]
[378005560,1754665841210,-552.95,0.00018753,2]
[378005561,1754665841219,-556.11,0.00018753,2]
[378005562,1754665841229,-1662.34,0.00018753,2]
[378005563,1754665841239,-2345.32166613,0.00018753,2]
[378005564,1754665841251,-648.648006,0.00018753,2]
[378005565,1754665841263,-978.63001481,0.00018753,2]
[378005566,1754665841535,-176.8393082,0.00018498,2]
[378005567,1754665841545,-500.0,0.00018498,2]
[378005568,1754665841555,-500.0,0.00018498,2]
[378005569,1754665841566,-622.95493124,0.00018498,2]
[378005570,1754665841576,-500.0,0.00018498,2]
[378005571,1754665841586,-500.0,0.00018498,2]
[378005572,1754665841595,-500.0,0.00018498,2]
[378005573,1754665841604,-423.17031306,0.00018753,2]
[378005574,1754665841613,-4291.86,0.00018753,2]
[378005575,1754665841623,-628.69,0.00018753,2]
[378005576,1754665841638,-1973.62,0.00018753,2]
[378005577,1754665841647,-182.74,0.00018753,2]
[378005578,1754665841657,-485.2,0.00018753,2]
[378005579,1754665841666,-496.84,0.00018753,2]
[378005580,1754665841676,-1320.6,0.00018753,2]
[378005581,1754665841685,-400.0,0.00018753,2]
[378005582,1754665841694,-400.0,0.00018753,2]
[378005583,1754665841704,-1053.64,0.00018753,2]
[378005584,1754665841713,-1446.98,0.00018753,2]
[378005585,1754665841723,-2547.2,0.00018753,2]
[378005586,1754665841732,-1803.06,0.00018753,2]
[378005587,1754665841741,-430.11,0.00018753,2]
[378005588,1754665841751,-1665.08,0.00018753,2]
[378005589,1754665841761,-409.39,0.00018753,2]
[378005590,1754665841770,-400.0,0.00018753,2]
[378005591,1754665841780,-400.0,0.00018753,2]
[378005592,1754665841790,-1820.22,0.00018753,2]
[378005593,1754665841800,-400.0,0.00018753,2]
[378005594,1754665841809,-400.0,0.00018753,2]
[378005595,1754665841819,-400.0,0.00018753,2]
[378005596,1754665841828,-400.0,0.00018753,2]
[378005597,1754665841838,-1417.64,0.00018753,2]
[378005598,1754665841847,-1789.44,0.00018753,2]
[378005599,1754665841857,-1595.52,0.00018753,2]
[378005600,1754665841866,-181.6709375,0.00018753,2]
[378005601,1754665841879,-218.3290625,0.00018753,2]
[378005602,1754665841888,-1552.56,0.00018753,2]
[378005603,1754665841897,-400.0,0.00018753,2]
[378005604,1754665841906,-1635.45,0.00018753,2]
[378005605,1754665841916,-400.0,0.00018753,2]
[378005606,1754665841925,-1673.89,0.00018753,2]
[378005607,1754665841935,-6096.74,0.00018753,2]
[378005608,1754665841944,-400.0,0.00018753,2]
[378005609,1754665841954,-520.06,0.00018753,2]
[378005610,1754665841964,-1181.99,0.00018753,2]
[378005611,1754665841973,-1183.61,0.00018753,2]
[378005612,1754665841983,-400.0,0.00018753,2]
[378005613,1754665841992,-453.76,0.00018753,2]
[378005614,1754665842002,-494.71,0.00018753,2]
[378005615,1754665842011,-789.9849375,0.00018753,2]
[378005616,1754665842026,-500.0,0.00018498,2]
[378005617,1754665842040,-1203.5750625,0.00018753,2]
[378005618,1754665842049,-400.0,0.00018753,2]
[378005619,1754665842058,-400.0,0.00018753,2]
[378005620,1754665842067,-400.0,0.00018753,2]
[378005621,1754665842076,-2152.99,0.00018753,2]
[378005622,1754665842087,-472.5,0.00018753,2]
[378005623,1754665842096,-666.95,0.00018753,2]
[378005624,1754665842106,-4150.4,0.00018753,2]
[378005625,1754665842115,-400.0,0.00018753,2]
[378005626,1754665842124,-1093.53,0.00018753,2]
[378005627,1754665842134,-400.0,0.00018753,2]
[378005628,1754665842143,-400.0,0.00018753,2]
[378005629,1754665842153,-841.05,0.00018753,2]
[378005630,1754665842162,-1410.47,0.00018753,2]
[378005631,1754665842172,-408.58,0.00018753,2]
[378005632,1754665842182,-400.0,0.00018753,2]
[378005633,1754665842191,-688.53,0.00018753,2]
[378005634,1754665842201,-8642.12,0.00018753,2]
[378005635,1754665842210,-400.0,0.00018753,2]
[378005636,1754665842220,-400.0,0.00018753,2]
[378005637,1754665842229,-400.0,0.00018753,2]
[378005638,1754665842239,-1161.85,0.00018753,2]
[378005639,1754665842248,-400.0,0.00018753,2]
[378005640,1754665842258,-8537.39,0.00018753,2]
[378005641,1754665842268,-581.1,0.00018753,2]
[378005642,1754665842279,-400.0,0.00018753,2]
[378005643,1754665842297,-400.0,0.00018753,2]
[378005644,1754665842317,-769.6,0.00018753,2]
[378005645,1754665842327,-400.0,0.00018753,2]
[378005646,1754665842337,-537.79,0.00018753,2]
[378005647,1754665842346,-764.64,0.00018753,2]
[378005648,1754665842356,-698.84,0.00018753,2]
[378005649,1754665842365,-400.0,0.00018753,2]
[378005650,1754665842375,-626.66,0.00018753,2]
[378005651,1754665842384,-7053.97,0.00018753,2]
[378005652,1754665842394,-410.12,0.00018753,2]
[378005653,1754665842403,-1437.71,0.00018753,2]
[378005654,1754665842412,-400.0,0.00018753,2]
[378005655,1754665842422,-976.31,0.00018753,2]
[378005656,1754665842432,-697.09,0.00018753,2]
[378005657,1754665842441,-1060.66,0.00018753,2]
[378005658,1754665842450,-2121.64,0.00018753,2]
[378005659,1754665842460,-1994.9,0.00018753,2]
[378005660,1754665842469,-400.0,0.00018753,2]
[378005661,1754665842478,-1365.08,0.00018753,2]
[378005662,1754665842488,-400.0,0.00018753,2]
[378005663,1754665842497,-421.03,0.00018753,2]
[378005664,1754665842506,-1720.38,0.00018753,2]
[378005665,1754665842515,-6688.1,0.00018753,2]
[378005666,1754665842524,-1882.77,0.00018753,2]
[378005667,1754665842538,-1742.97,0.00018753,2]
[378005668,1754665842547,-400.0,0.00018753,2]
[378005669,1754665842556,-400.0,0.00018753,2]
[378005670,1754665842565,-400.0,0.00018754,2]
[378005671,1754665842574,-400.0,0.00018754,2]
[378005672,1754665842584,-400.0,0.00018754,2]
[378005673,1754665842594,-793.22,0.00018754,2]
[378005674,1754665842603,-400.0,0.00018754,2]
[378005675,1754665842613,-400.0,0.00018754,2]
[378005676,1754665842622,-400.0,0.00018754,2]
[378005677,1754665842635,-400.0,0.00018754,2]
[378005678,1754665842644,-400.0,0.00018754,2]
[378005679,1754665842653,-400.0,0.00018754,2]
[378005680,1754665842663,-493.97,0.00018754,2]
[378005681,1754665842674,-1903.86,0.00018754,2]
[378005682,1754665842683,-400.0,0.00018754,2]
[378005683,1754665842694,-1894.5,0.00018754,2]
[378005684,1754665842706,-508.12,0.00018754,2]
[378005685,1754665842716,-400.0,0.00018754,2]
[378005686,1754665842725,-936.56,0.00018754,2]
[378005687,1754665842735,-514.13,0.00018754,2]
[378005688,1754665842745,-1758.55,0.00018754,2]
[378005689,1754665842755,-504.28,0.00018754,2]
[378005690,1754665842765,-824.2,0.00018754,2]
[378005691,1754665842775,-1151.3,0.00018754,2]
[378005692,1754665842787,-400.0,0.00018754,2]
[378005693,1754665842797,-1221.48,0.00018754,2]
[378005694,1754665842808,-665.51,0.00018754,2]
[378005695,1754665842817,-874.41,0.00018754,2]
[378005696,1754665842828,-413.73,0.00018754,2]
[378005697,1754665842837,-536.28418661,0.00018754,2]
[378005698,1754665842847,-1009.5,0.00018754,2]
[378005699,1754665842856,-400.0,0.00018754,2]
[378005700,1754665842865,-400.0,0.00018754,2]
[378005701,1754665842875,-716.81,0.00018754,2]
[378005702,1754665842884,-680.11,0.00018754,2]
[378005704,1754665842893,-400.0,0.00018754,2]
[378005705,1754665842903,-400.0,0.00018754,2]
[378005706,1754665842912,-571.33,0.00018754,2]
[378005707,1754665842923,-512.18,0.00018754,2]
[378005708,1754665842932,-515.23,0.00018754,2]
[378005709,1754665842942,-400.0,0.00018754,2]
[378005710,1754665842951,-400.0,0.00018754,2]
[378005711,1754665842960,-872.63,0.00018754,2]
[378005712,1754665842969,-594.69,0.00018754,2]
[378005713,1754665842979,-1929.53,0.00018754,2]
[378005714,1754665842988,-1377.46,0.00018754,2]
[378005716,1754665842997,-2484.39,0.00018754,2]
[378005717,1754665843007,-509.4,0.00018754,2]
[378005718,1754665843015,-8140.84,0.00018754,2]
[378005719,1754665843025,-654.3,0.00018754,2]
[378005720,1754665843037,-2070.05,0.00018754,2]
[378005721,1754665843046,-1804.46,0.00018754,2]
[378005722,1754665843055,-2343.77,0.00018754,2]
[378005723,1754665843064,-531.78,0.00018754,2]
[378005724,1754665843074,-504.1,0.00018754,2]
[378005725,1754665843083,-2149.16,0.00018754,2]
[378005726,1754665843092,-400.0,0.00018754,2]
[378005727,1754665843101,-495.95,0.00018754,2]
[378005728,1754665843110,-554.41,0.00018754,2]
[378005729,1754665843119,-4671.67,0.00018754,2]
[378005730,1754665843129,-1061.56,0.00018754,2]
[378005731,1754665843139,-400.0,0.00018754,2]
[378005732,1754665843148,-1288.94,0.00018754,2]
[378005733,1754665843157,-1919.61,0.00018754,2]
[378005734,1754665843166,-658.81,0.00018754,2]
[378005735,1754665843175,-1740.88,0.00018754,2]
[378005736,1754665843185,-1822.11,0.00018754,2]
[378005737,1754665843194,-5622.92,0.00018754,2]
[378005738,1754665843203,-1193.67,0.00018754,2]
[378005739,1754665843213,-800.02,0.00018754,2]
[378005740,1754665843223,-1485.12,0.00018754,2]
[378005741,1754665843233,-2726.91,0.00018754,2]
[378005742,1754665843243,-1609.87,0.00018754,2]
[378005743,1754665843252,-1781.37,0.00018754,2]
[378005744,1754665843262,-892.95,0.00018754,2]
[378005745,1754665843271,-4263.28,0.00018754,2]
[378005746,1754665843283,-400.0,0.00018754,2]
[378005747,1754665843292,-632.28,0.00018754,2]
[378005748,1754665843301,-476.08,0.00018754,2]
[378005749,1754665843310,-5283.43,0.00018754,2]
[378005750,1754665843320,-603.86,0.00018754,2]
[378005751,1754665843329,-1370.93,0.00018754,2]
[378005752,1754665843339,-654.87,0.00018754,2]
[378005753,1754665843348,-662.57,0.00018754,2]
[378005754,1754665843357,-1612.6,0.00018754,2]
[378005755,1754665843366,-16809.6,0.00018754,2]
[378005756,1754665843376,-626.82,0.00018754,2]
[378005757,1754665843387,-595.78,0.00018754,2]
[378005758,1754665843396,-445.55,0.00018754,2]
[378005759,1754665843405,-440.64,0.00018754,2]
[378005760,1754665843414,-400.0,0.00018754,2]
[378005761,1754665843424,-1523.12,0.00018754,2]
[378005762,1754665843433,-469.66,0.00018754,2]
[378005763,1754665843442,-2837.61,0.00018754,2]
[378005764,1754665843450,-1107.69,0.00018754,2]
[378005765,1754665843459,-1566.58,0.00018754,2]
[378005766,1754665843469,-1777.7,0.00018754,2]
[378005767,1754665843477,-1528.48,0.00018754,2]
[378005768,1754665843487,-452.76,0.00018754,2]
[378005769,1754665843497,-254.49691924,0.00018755,2]
[378005770,1754665843506,-400.78870484,0.00018755,2]
[378005772,1754665843515,-401.11050825,0.00018755,2]
[378005773,1754665843525,-400.0,0.00018755,2]
[378005774,1754665843536,-2001.05,0.00018755,2]
[378005776,1754665843546,-400.0,0.00018755,2]
[378005777,1754665843555,-574.4,0.00018755,2]
[378005778,1754665843566,-400.0,0.00018755,2]
[378005779,1754665843576,-1650.03,0.00018755,2]
[378005780,1754665843585,-897.62,0.00018755,2]
[378005781,1754665843596,-528.95,0.00018755,2]
[378005782,1754665843606,-400.0,0.00018755,2]
[378005783,1754665843616,-400.0,0.00018755,2]
[378005784,1754665843628,-4238.78,0.00018755,2]
[378005785,1754665843640,-2140.87,0.00018755,2]
[378005786,1754665843650,-3745.72,0.00018755,2]
[378005787,1754665843661,-1142.58,0.00018755,2]
[378005788,1754665843670,-1000.0,0.00018755,2]
[378005789,1754665843680,-2647.29,0.00018755,2]
[378005790,1754665843689,-5081.99,0.00018755,2]
[378005791,1754665843699,-400.0,0.00018755,2]
[378005792,1754665843708,-4075.89,0.00018755,2]
[378005793,1754665843718,-3428.61,0.00018755,2]
[378005794,1754665843727,-3823.96,0.00018755,2]
[378005795,1754665843737,-5238.54,0.00018755,2]
[378005796,1754665843746,-10172.64,0.00018755,2]
[378005797,1754665843756,-6215.17,0.00018755,2]
[378005798,1754665843765,-152.174292,0.00018755,2]
[378005799,1754665843775,-150.0,0.00018761,2]
[378005800,1754665843784,-500.0,0.00018761,2]
[378005801,1754665843793,-500.0,0.00018761,2]
[378005802,1754665843803,-156.94633586,0.00018763,2]
[378005803,1754665843814,-160.0,0.00018768,2]
[378005804,1754665843823,-457.64618948,0.00018768,2]
[378005805,1754665843832,-842.44706758,0.00018768,2]
[378005806,1754665843842,-211.62674257,0.00018768,2]
[378005807,1754665843851,-1147.74,0.00018772,2]
[378005808,1754665843860,-400.0,0.00018772,2]
[378005809,1754665843870,-1506.21,0.00018772,2]
[378005810,1754665843879,-400.0,0.00018773,2]
[378005812,1754665843888,-406.77,0.00018773,2]
[378005813,1754665843898,-400.0,0.00018773,2]
[378005814,1754665843908,-418.67,0.00018773,2]
[378005815,1754665843917,-529.03468818,0.00018773,2]
[378005816,1754665843926,-639.76,0.00018773,2]
[378005817,1754665843935,-400.0,0.00018773,2]
[378005818,1754665843944,-680.27,0.00018773,2]
[378005819,1754665843953,-400.0,0.00018773,2]
[378005820,1754665843962,-1037.97,0.00018773,2]
[378005821,1754665843972,-400.0,0.00018773,2]
[378005822,1754665843982,-400.0,0.00018773,2]
[378005823,1754665843993,-400.0,0.00018773,2]
[378005824,1754665844003,-181.18152127,0.00018773,2]
[378005826,1754665844012,-400.0,0.00018773,2]
[378005827,1754665844022,-400.0,0.00018773,2]
[378005828,1754665844031,-400.0,0.00018773,2]
[378005829,1754665844042,-643.63,0.00018773,2]
[378005830,1754665844052,-400.0,0.00018773,2]
[378005831,1754665844061,-495.04,0.00018773,2]
[378005832,1754665844069,-834.26,0.00018773,2]
[378005833,1754665844079,-400.0,0.00018773,2]
[378005834,1754665844089,-1082.64,0.00018773,2]
[378005835,1754665844098,-400.0,0.00018773,2]
[378005836,1754665844107,-400.0,0.00018773,2]
[378005837,1754665844116,-1314.05,0.00018773,2]
[378005838,1754665844125,-400.0,0.00018773,2]
[378005839,1754665844134,-400.0,0.00018773,2]
[378005840,1754665844143,-400.0,0.00018773,2]
[378005841,1754665844153,-400.0,0.00018773,2]
[378005842,1754665844162,-400.0,0.00018773,2]
[378005843,1754665844172,-435.51,0.00018773,2]
[378005844,1754665844181,-400.0,0.00018773,2]
[378005845,1754665844190,-400.0,0.00018773,2]
[378005846,1754665844200,-1056.5,0.00018773,2]
[378005847,1754665844209,-405.65,0.00018773,2]
[378005848,1754665844218,-542.35,0.00018773,2]
[378005849,1754665844227,-506.54,0.00018773,2]
[378005850,1754665844237,-640.77,0.00018773,2]
[378005851,1754665844246,-409.28,0.00018773,2]
[378005852,1754665844255,-605.96,0.00018773,2]
[378005853,1754665844264,-426.37,0.00018773,2]
[378005854,1754665844274,-400.0,0.00018773,2]
[378005855,1754665844283,-400.0,0.00018773,2]
[378005856,1754665844293,-400.0,0.00018773,2]
[378005857,1754665844302,-1344.72,0.00018773,2]
[378005858,1754665844311,-400.0,0.00018773,2]
[378005859,1754665844320,-400.0,0.00018773,2]
[378005860,1754665844329,-400.0,0.00018773,2]
[378005861,1754665844338,-400.0,0.00018773,2]
[378005862,1754665844347,-400.0,0.00018773,2]
[378005863,1754665844356,-741.27,0.00018773,2]
[378005864,1754665844365,-419.32,0.00018773,2]
[378005865,1754665844375,-1048.94,0.00018773,2]
[378005866,1754665844384,-187.70740298,0.00018773,2]
[378005867,1754665844394,-421.24,0.00018773,2]
[378005868,1754665844403,-400.0,0.00018773,2]
[378005869,1754665844412,-636.47,0.00018773,2]
[378005870,1754665844422,-1559.71,0.00018773,2]
[378005871,1754665844431,-400.0,0.00018773,2]
[378005872,1754665844440,-488.29,0.00018773,2]
[378005873,1754665844450,-582.23,0.00018773,2]
[378005874,1754665844459,-400.0,0.00018773,2]
[378005875,1754665844468,-1131.21,0.00018773,2]
[378005876,1754665844478,-400.0,0.00018773,2]
[378005877,1754665844488,-400.0,0.00018773,2]
[378005878,1754665844498,-400.0,0.00018773,2]
[378005879,1754665844507,-400.0,0.00018773,2]
[378005880,1754665844516,-498.79,0.00018773,2]
[378005881,1754665844526,-412.19,0.00018773,2]
[378005882,1754665844536,-1493.88,0.00018773,2]
[378005883,1754665844545,-478.7,0.00018773,2]
[378005884,1754665844554,-400.0,0.00018773,2]
[378005885,1754665844564,-400.0,0.00018773,2]
[378005886,1754665844573,-400.0,0.00018773,2]
[378005887,1754665844582,-519.38507036,0.00018773,2]
[378005888,1754665844592,-400.0,0.00018773,2]
[378005889,1754665844601,-400.0,0.00018773,2]
[378005890,1754665844611,-878.26,0.00018773,2]
[378005891,1754665844620,-852.63,0.00018773,2]
[378005892,1754665844630,-182.24451975,0.00018773,2]
[378005893,1754665844640,-400.0,0.00018773,2]
[378005894,1754665844650,-400.0,0.00018773,2]
[378005895,1754665844659,-400.0,0.00018773,2]
[378005896,1754665844668,-1151.07,0.00018773,2]
[378005897,1754665844679,-400.0,0.00018773,2]
[378005898,1754665844688,-400.0,0.00018773,2]
[378005899,1754665844697,-158.93256342,0.00018773,2]
[378005900,1754665844709,-400.0,0.00018773,2]
[378005901,1754665844718,-400.0,0.00018773,2]
[378005902,1754665844727,-400.0,0.00018773,2]
[378005903,1754665844737,-400.0,0.00018773,2]
[378005904,1754665844746,-400.0,0.00018773,2]
[378005905,1754665844755,-1189.03,0.00018773,2]
[378005906,1754665844765,-200.02,0.00018773,2]
[378005907,1754665844774,-400.0,0.00018773,2]
[378005908,1754665844784,-400.0,0.00018773,2]
[378005909,1754665844794,-400.0,0.00018773,2]
[378005910,1754665844804,-400.0,0.00018773,2]
[378005911,1754665844813,-400.0,0.00018773,2]
[378005912,1754665844823,-400.0,0.00018773,2]
[378005913,1754665844832,-400.0,0.00018773,2]
[378005914,1754665844841,-400.0,0.00018773,2]
[378005915,1754665844851,-2092.47,0.00018773,2]
[378005916,1754665844860,-400.0,0.00018773,2]
[378005917,1754665844869,-400.0,0.00018773,2]
[378005918,1754665844879,-400.0,0.00018773,2]
[378005919,1754665844888,-400.0,0.00018773,2]
[378005920,1754665844897,-496.27,0.00018773,2]
[378005921,1754665844907,-214.09,0.00018773,2]
[378005922,1754665844916,-454.2,0.00018773,2]
[378005923,1754665844926,-400.0,0.00018773,2]
[378005924,1754665844936,-1142.29,0.00018773,2]
[378005925,1754665844946,-670.13,0.00018773,2]
[378005926,1754665844955,-2302.35,0.00018773,2]
[378005927,1754665844965,-662.54,0.00018773,2]
[378005928,1754665844974,-420.28,0.00018773,2]
[378005929,1754665844984,-400.0,0.00018773,2]
[378005930,1754665844993,-527.6671072,0.00018773,2]
[378005931,1754665845003,-400.0,0.00018773,2]
[378005932,1754665845012,-400.0,0.00018773,2]
[378005933,1754665845021,-605.62,0.00018773,2]
[378005934,1754665845031,-699.18,0.00018773,2]
[378005935,1754665845042,-432.65,0.00018773,2]
[378005936,1754665845053,-454.4,0.00018773,2]